{"text_format":"1","workbook":"xlsx","n_sheets":3,"sheets":["ファイル作成","読込データ","編集用シート"],"not_rendered":{"charts":0,"images":1,"macros":1,"external_links":0,"defined_names":0,"comments":0,"pivot_tables":0},"unopened":[],"bounds":{"document_bytes":16777216,"sheet_cells":100000,"rows_first":2000,"rows_last":500,"rows_between":2000,"halvings":0,"cell_chars":16384,"cell_head_chars":4096},"cells_cut":0,"cells_raw":0,"read":"whole","date_system":"1900"}

{"sheet":"ファイル作成","index":0,"n_rows":4,"n_cols":12,"rows_kept":4,"cut":false,"hidden":false,"merged":[[1,0,1,4]]}
[]
["配送伝票番号ULファイル作成ツール　Ver.3.0"]
[]
[null,null,null,null,null,"C:\\Users\\FTES_KAIHATSU_01\\Desktop\\お問い合わせ番号\\テストデータ - コピー\\20120626_LST_CC-B05_0004_label_csv_01_1_2_100100_000000000019_外字なし（文字化けあり）-34.csv",null,null,null,null,null,"C:\\work\\ツール\\40_開発(テスト)\\02_単体テスト結果\\1.配送伝票番号ULファイル作成ツール\\data\\標準\\Dタイプ（新）_④ラベルデータ一覧 .csv"]

{"sheet":"読込データ","index":1,"n_rows":2,"n_cols":132,"rows_kept":2,"cut":false,"hidden":true,"merged":[]}
[{"$f":"IF(A$2=A$3,0,1)","v":1},{"$f":"IF(B$2=B$3,0,1)","v":1},1,1,1,1,1,1,1,1,1,1,1,1,1,1,1,1,1,1,1,1,1,1,1,1,1,1,1,1,1,1,1,1,1,1,1,1,1,1,1,1,1,1,1,1,1,1,1,1,1,1,1,1,1,1,1,1,1,1,1,1,1,1,1,{"$f":"IF(BN$2=BN$3,0,1)","v":1},1,1,1,1,1,1,1,1,1,1,1,1,1,1,1,1,1,1,1,1,1,1,1,1,1,1,1,1,1,1,1,1,1,1,1,1,1,1,1,1,1,1,1,1,1,1,1,1,1,1,1,1,1,1,1,1,1,1,1,1,1,1,1,{"$f":"IF(DZ$2=DZ$3,0,1)","v":1},{"$f":"IF(EA$2=EA$3,0,1)","v":1},{"$f":"IF(EB$2=EB$3,0,1)","v":1}]
["出荷元会員番号","出荷元PC ID","出荷元ログイングループID","出荷元ログインユーザID","出荷元ログイングループ名称","出荷元ログインユーザ名称","出荷元郵便番号","出荷元電話番号","出荷元住所-JIS１１","出荷元住所-番地","出荷元住所-号","出荷元住所-ビル名","テンプレート番号","お届け先グループコード","処理番号","お客様側管理番号","代表お問い合わせ番号","発送予定日","発送予定時間区分","発送日","出荷期限日","到着期限日","郵便種別","保冷種別","元／着払／代引","書留／セキュリティ／特定記録種別","配達時間帯指定郵便種別","送り状種別","お届け先 検索キー","お届け先 郵便番号","お届け先 住所","お届け先 住所２","お届け先 住所３","お届け先 名称","お届け先 名称２","お届け先 フリガナ","お届け先 フリガナ２","お届け先 敬称区分","お届け先 電話番号","お届け先 メールアドレス１","お届け先 メール１種別","お届け先 メールアドレス２","お届け先 メール２種別","お届け先 局留め区分","お届け先 局留め郵便局名","お届け先 局留め住所","お届け先 局留めメール使用区分","お届け先 局留め郵便番号","お届け先 配達予告メール使用区分","お届け先 再配達予告メール使用区分","お届け先 住所コード","お届け先 カスタマバーコード","ご依頼主 検索キー","ご依頼主 利用者同一区分","ご依頼主 集荷先と同一区分","ご依頼主 郵便番号","ご依頼主 住所","ご依頼主 住所２","ご依頼主 住所３","ご依頼主 名称","ご依頼主 名称２","ご依頼主 フリガナ","ご依頼主 フリガナ２","ご依頼主 敬称","ご依頼主 電話番号","ご依頼主 メールアドレス１","ご依頼主 メール種別１","ご依頼主 メールアドレス２","ご依頼主 メール種別２","ご依頼主 荷送人指図区分","ご依頼主 お届け通知メール使用区分","ご依頼主 お届け通知はがき使用区分","ご依頼主 住所コード","ご依頼主 カスタマバーコード","ご依頼主 メール利用区分","集荷先 検索キー","集荷先 連携可否区分","集荷先  会社コード","集荷先 依頼先店所コード","集荷先 郵便番号","集荷先 住所","集荷先 住所２","集荷先 住所３","集荷先 名称","集荷先 名称２","集荷先 フリガナ","集荷先 フリガナ２","集荷先 敬称","集荷先 電話番号","集荷先 住所コード","受注番号","こわれもの区分","なまもの区分","ビン類区分","逆さま厳禁区分","下積み厳禁区分","商品サイズ区分","重量合計（ｇ）","閾値重量（ｇ）","25kg超重量物区分","荷物価格","書留 損害要償額","速達種別","配達希望日","配達指定日曜日種別","配達時間帯区分","差出方法区分","ゆうパック往復割引","ゆうパック数量割引","ゆうパック複数個割引","ゆうパック同一割引","ゆうパック政策運賃割引","セット商品コード","フリー項目０１","セット品名ラベル印字区分","複数個口数","記事名１","記事名２","フリー項目０２","フリー項目０３","フリー項目０４","フリー項目０５","フリー項目０６","フリー項目０７","フリー項目０８","フリー項目０９","お問い合わせ番号","フリー項目１０","商品番号","品名","個数","重量（ｇ）"]

{"sheet":"編集用シート","index":2,"n_rows":0,"n_cols":0,"rows_kept":0,"cut":false,"hidden":true,"merged":[]}